bitfinex-derivatives/quotes_BTCF0:USTF0_20241110
["timestamp","ask_amount","ask_price","bid_price","bid_amount"]
[1731239882466,0.0498,80055.0,80050.0,0.13432]
[1731239882673,0.0498,80055.0,80051.0,0.13432]
[1731239882864,0.3608,80068.0,80054.0,0.3608]
[1731239883063,0.06892792,80067.0,80054.0,0.3608]
[1731239883269,0.3608,80068.0,80054.0,0.3608]
[1731239883270,0.06892792,80066.0,80054.0,0.3608]
[1731239883568,0.06892792,80065.0,80054.0,0.3608]
[1731239883871,0.03058797,80064.0,80054.0,0.3608]
[1731239884170,0.06892909,80063.0,80054.0,0.3608]
[1731239884371,0.03058797,80062.0,80054.0,0.3608]
[1731239884670,0.06892909,80061.0,80054.0,0.3608]
[1731239884978,0.06893006,80060.0,80054.0,0.3608]
[1731239885161,0.06893006,80059.0,80054.0,0.3608]
[1731239885361,0.06893006,80058.0,80054.0,0.3608]
[1731239885669,0.06893006,80057.0,80054.0,0.3608]
[1731239885885,0.03058892,80056.0,80054.0,0.3608]
[1731239886172,0.08118892,80055.0,80054.0,0.3608]
[1731239886677,0.08118892,80055.0,80054.0,0.2788]
[1731239887176,0.08118892,80055.0,80054.0,0.33893096]
[1731239888475,0.08118892,80055.0,80054.0,0.2788]
[1731239888864,0.11953153,80055.0,80054.0,0.2788]
[1731239889069,0.08118892,80055.0,80054.0,0.2788]
[1731239889269,0.11953164,80055.0,80054.0,0.2788]
[1731239889474,0.11953164,80055.0,80046.0,0.3608]
[1731239889475,0.49429164,80055.0,80046.0,0.3608]
[1731239889663,0.06893164,80054.0,80046.0,0.3608]
[1731239891677,0.11169929,80055.0,80046.0,0.3608]
[1731239891678,0.03058892,80053.0,80046.0,0.3608]
[1731239891873,0.11169929,80055.0,80046.0,0.3608]
[1731239892775,0.03059075,80054.0,80046.0,0.3608]
[1731239893074,0.03059075,80053.0,80046.0,0.3608]
[1731239893273,0.03059075,80052.0,80046.0,0.3608]
[1731239893473,0.08459075,80051.0,80046.0,0.3608]
[1731239893675,0.054,80051.0,80046.0,0.3608]
[1731239894474,0.13432,80063.0,80046.0,0.3608]
[1731239894475,0.3608,80068.0,80049.0,0.3608]
[1731239894777,0.0541,80066.0,80062.0,0.3608]
[1731239894967,0.03058703,80065.0,80062.0,0.3608]
[1731239895171,0.03058703,80064.0,80062.0,0.3608]
[1731239895373,0.03058703,80063.0,80062.0,0.3608]
[1731239895578,0.03058703,80063.0,80059.0,0.3608]
[1731239895880,0.03058703,80062.0,80059.0,0.3608]
[1731239896072,0.03058703,80061.0,80059.0,0.3608]
[1731239896379,0.03058703,80060.0,80059.0,0.3608]
[1731239897481,0.0541,80066.0,80059.0,0.3608]
[1731239898582,0.0541,80066.0,80059.0,0.4213464]
[1731239899173,0.0541,80066.0,80059.0,0.3608]
[1731239899982,0.030584,80065.0,80059.0,0.3608]
[1731239900182,0.030584,80064.0,80059.0,0.3608]
[1731239900386,0.030584,80063.0,80059.0,0.3608]
[1731239900584,0.030584,80062.0,80059.0,0.3608]
[1731239900779,0.030584,80061.0,80059.0,0.3608]
[1731239900973,0.030584,80060.0,80059.0,0.3608]
[1731239902679,0.06891856,80060.0,80059.0,0.3608]
[1731239903477,0.06891856,80060.0,80059.0,0.49512]
[1731239903679,0.03058317,80060.0,80059.0,0.49512]
[1731239905877,0.13721639,80081.0,80059.0,0.49512]
[1731239906183,0.44147301,80093.0,80080.0,0.3608]
[1731239906485,0.30428316,80093.0,80081.0,0.1067]
[1731239906780,0.03833185,80092.0,80081.0,0.1067]
[1731239906991,0.30428316,80093.0,80081.0,0.1067]
[1731239907890,0.60428316,80093.0,80080.0,0.3608]
[1731239908301,0.97888316,80093.0,80080.0,0.3608]
[1731239908584,0.13432,80092.0,80080.0,0.3608]
[1731239908785,0.03833334,80091.0,80080.0,0.3608]
[1731239908984,0.30428316,80093.0,80080.0,0.3608]
[1731239911089,0.1121,80092.0,80080.0,0.3608]
[1731239912190,0.30428316,80093.0,80080.0,0.3608]
[1731239913189,0.60428316,80093.0,80080.0,0.3608]
[1731239913990,0.03058219,80092.0,80080.0,0.3608]
[1731239914192,0.03058219,80091.0,80080.0,0.3608]
[1731239914389,0.03058219,80090.0,80080.0,0.3608]
[1731239914592,0.03058219,80089.0,80080.0,0.3608]
[1731239914793,0.60428316,80093.0,80080.0,0.3608]
[1731239914794,0.03058219,80088.0,80080.0,0.3608]
[1731239914993,0.08808219,80087.0,80080.0,0.3608]
[1731239915183,0.03058219,80086.0,80080.0,0.3608]
[1731239916091,0.06891492,80086.0,80080.0,0.3608]
[1731239916297,0.06891492,80085.0,80080.0,0.3608]
[1731239916497,0.13408,80092.0,80080.0,0.3608]
[1731239916498,0.03058219,80084.0,80080.0,0.3608]
[1731239916697,0.03058219,80083.0,80080.0,0.3608]
[1731239916892,0.03058219,80082.0,80080.0,0.3608]
[1731239917094,0.06891492,80081.0,80080.0,0.3608]
[1731239917889,0.061644,80081.0,80080.0,0.3608]
[1731239918193,0.30428316,80093.0,80080.0,0.3608]
[1731239918194,0.06891492,80088.0,80080.0,0.3608]
[1731239918389,0.06891492,80087.0,80080.0,0.3608]
[1731239918589,0.06891492,80086.0,80080.0,0.3608]
[1731239918792,0.06891492,80085.0,80080.0,0.3608]
[1731239918989,0.06891494,80084.0,80080.0,0.3608]
[1731239919190,0.03058219,80083.0,80081.0,0.1636]
[1731239919393,0.03058219,80082.0,80081.0,0.1636]
[1731239919695,0.03058147,80082.0,80081.0,0.1636]
[1731239920397,0.36727757,80093.0,80081.0,0.1636]
[1731239920595,0.03058147,80092.0,80081.0,0.1636]
[1731239920900,0.03058147,80091.0,80081.0,0.1636]
[1731239921094,0.06891327,80090.0,80081.0,0.1636]
[1731239921394,0.06891327,80089.0,80081.0,0.1636]
[1731239921593,0.13408,80105.0,80081.0,0.1636]
[1731239921594,0.13710787,80104.0,80097.0,0.0049]
[1731239921789,0.06128635,80110.0,80100.0,0.3608]
[1731239921992,0.37456,80106.0,80101.0,0.0556]
[1731239922192,0.37456,80102.0,80101.0,0.0556]
[1731239922390,0.37456,80102.0,80100.0,0.3608]
[1731239922703,0.4209456,80113.0,80100.0,0.3608]
[1731239922995,0.37456,80101.0,80100.0,0.3608]
[1731239924194,0.4193498,80101.0,80100.0,0.3608]
[1731239924591,0.37456,80101.0,80100.0,0.3608]
[1731239925005,0.4193498,80101.0,80100.0,0.3608]
[1731239925203,0.4193498,80101.0,80100.0,0.38576878]
[1731239925692,0.41934981,80101.0,80100.0,0.38576878]
[1731239926693,0.45768112,80101.0,80100.0,0.38576878]
[1731239926894,0.41289131,80101.0,80100.0,0.38576878]
[1731239927200,0.4576812,80101.0,80100.0,0.38576878]
[1731239927598,0.51915871,80101.0,80100.0,0.38576878]
[1731239927799,0.4808274,80101.0,80100.0,0.38576878]
[1731239928698,0.51915882,80101.0,80100.0,0.38576878]
[1731239932401,0.0191674,80101.0,80100.0,0.54481756]
[1731239932600,0.3608,80113.0,80100.0,0.54481756]
[1731239932802,0.37456,80112.0,80101.0,0.0563]
[1731239933201,0.42103809,80113.0,80101.0,0.0563]
[1731239933698,0.79559809,80113.0,80101.0,0.0563]
[1731239934004,0.37456,80108.0,80101.0,0.19038]
[1731239934591,0.37456,80108.0,80101.0,0.0563]
[1731239934806,0.37456,80103.0,80101.0,0.0563]
[1731239934997,0.37456,80104.0,80101.0,0.0563]
[1731239935197,0.37456,80110.0,80101.0,0.0563]
[1731239935495,0.37456,80111.0,80101.0,0.0563]
[1731239935906,0.42103809,80113.0,80101.0,0.0563]
[1731239936204,0.37456,80112.0,80101.0,0.0563]
[1731239936606,0.1373554,80107.0,80101.0,0.0563]
[1731239936793,0.1373554,80107.0,80101.0,0.05639569]
[1731239937200,0.1373554,80107.0,80101.0,9.569e-05]
[1731239937609,0.1373554,80107.0,80101.0,0.02506416]
[1731239937909,0.1373554,80107.0,80101.0,0.32506416]
[1731239938206,0.1373554,80107.0,80102.0,0.13408]
[1731239938408,0.0479554,80107.0,80102.0,0.37452]
[1731239938706,0.0479554,80107.0,80101.0,0.02506416]
[1731239938911,0.0479554,80107.0,80103.0,0.18832871]
[1731239939206,0.0479554,80107.0,80102.0,0.18832871]
[1731239939405,0.0479554,80107.0,80103.0,0.13408]
[1731239939799,0.0479554,80107.0,80103.0,0.43408]
[1731239940000,0.11370278,80112.0,80104.0,0.56299278]
[1731239940306,0.11370278,80112.0,80104.0,0.48847278]
[1731239940499,0.11370278,80112.0,80105.0,0.42848]
[1731239940697,0.11370278,80112.0,80106.0,0.13408]
[1731239940907,0.06891273,80112.0,80106.0,0.62072891]
[1731239941097,0.06891273,80112.0,80107.0,0.24444116]
[1731239941498,0.06891273,80111.0,80107.0,0.43196564]
[1731239941697,0.02420233,80112.0,80108.0,0.43368]
[1731239942200,0.02420233,80112.0,80109.0,0.75010226]
[1731239942607,0.02420233,80112.0,80110.0,0.37448]
[1731239942805,0.02420233,80112.0,80111.0,0.37448]
[1731239943005,0.02420233,80112.0,80111.0,0.50947078]
[1731239943205,0.02420233,80112.0,80111.0,0.86256257]
[1731239943403,0.3608,80113.0,80111.0,0.86256257]
[1731239943702,0.3608,80113.0,80112.0,0.37448]
[1731239943902,0.3608,80113.0,80112.0,0.67448]
[1731239944110,0.3608,80113.0,80112.0,0.99656003]
[1731239945195,0.3525,80113.0,80112.0,1.18451315]
[1731239946004,0.3525,80113.0,80112.0,1.05063315]
[1731239946805,0.43561944,80113.0,80112.0,1.05063315]
[1731239947001,0.43561944,80113.0,80112.0,1.18447315]
[1731239947303,0.43561944,80113.0,80112.0,0.99627312]
[1731239947496,0.43561944,80113.0,80112.0,0.74973038]
[1731239947700,0.39728892,80113.0,80112.0,0.62113726]
[1731239948004,0.3525,80113.0,80112.0,0.62101726]
[1731239948203,0.3525,80113.0,80112.0,0.67464353]
[1731239948401,0.3525,80113.0,80112.0,0.80848353]
[1731239949209,0.15635224,80126.0,80114.0,0.125]
[1731239949506,0.11560353,80132.0,80118.0,0.125]
[1731239949704,0.03057641,80131.0,80126.0,0.125]
[1731239949910,0.03057641,80130.0,80125.0,0.0018]
[1731239950101,0.0596,80130.0,80126.0,0.13384]
[1731239950302,0.19702649,80130.0,80127.0,0.13384]
[1731239950503,0.0596,80130.0,80127.0,0.13384]
[1731239950800,0.0596,80130.0,80128.0,0.18646397]
[1731239951001,0.0596,80130.0,80120.0,0.13384]
[1731239951205,0.11560353,80132.0,80129.0,0.18766628]
[1731239951700,0.11560353,80132.0,80122.0,0.18766628]
[1731239951899,0.11560353,80132.0,80130.0,0.18766628]
[1731239952106,0.11560353,80132.0,80127.0,0.18766628]
[1731239952403,0.11560353,80132.0,80131.0,0.18833198]
[1731239952607,0.11560353,80132.0,80128.0,0.18833198]
[1731239952807,0.70300688,80127.0,80117.0,0.3608]
[1731239953009,0.70300688,80118.0,80117.0,0.3608]
[1731239953207,0.74779124,80118.0,80117.0,0.3608]
[1731239953399,0.04478436,80118.0,80117.0,0.3608]
[1731239953602,0.04478436,80131.0,80117.0,0.3608]
[1731239953902,0.04478436,80131.0,80118.0,0.18803135]
[1731239953903,0.70300688,80125.0,80118.0,0.18803135]
[1731239954106,0.04478436,80124.0,80118.0,0.18803135]
[1731239954302,0.78612006,80124.0,80119.0,0.13384]
[1731239954599,0.08311318,80123.0,80120.0,0.18801712]
[1731239954800,0.03832882,80122.0,80120.0,0.18801712]
[1731239955005,0.03832882,80121.0,80120.0,0.48801712]
[1731239955310,0.03832882,80121.0,80120.0,0.37609532]
[1731239955497,0.03832882,80121.0,80120.0,0.57397909]
[1731239955706,0.03832882,80121.0,80120.0,0.38596197]
[1731239956407,0.03832876,80121.0,80120.0,0.38596197]
[1731239956911,0.03832876,80121.0,80120.0,0.25212197]
[1731239957203,0.99795481,80121.0,80117.0,0.3608]
[1731239957408,0.70300688,80118.0,80117.0,0.3608]
[1731239957611,0.78612,80118.0,80117.0,0.3608]
[1731239957807,1.04273917,80118.0,80117.0,0.3608]
[1731239960309,0.99795481,80118.0,80117.0,0.2714]
[1731239960504,1.04274408,80118.0,80117.0,0.227106]
[1731239960708,1.00053867,80118.0,80100.0,0.00436933]
[1731239960922,0.3608,80104.0,80092.0,0.10418083]
[1731239961104,0.3608,80104.0,80046.0,0.0553]
[1731239961105,0.3608,80093.0,80081.0,0.3608]
[1731239961404,0.3608,80082.0,80065.0,0.3608]
[1731239961606,0.3608,80066.0,80060.0,7e-07]
[1731239961806,0.08315755,80065.0,80060.0,7e-07]
[1731239962004,0.03834807,80064.0,80060.0,7e-07]
[1731239962209,0.03834807,80063.0,80060.0,7e-07]
[1731239962509,0.37468,80069.0,80060.0,7e-07]
[1731239962510,0.03834807,80062.0,80060.0,7e-07]
[1731239962704,0.03834807,80061.0,80060.0,7e-07]
[1731239963206,0.41306807,80061.0,80060.0,7e-07]
[1731239963608,0.03834807,80061.0,80060.0,7e-07]
[1731239964305,0.16130391,80115.0,80069.0,0.3608]
[1731239964511,0.13644185,80106.0,80105.0,0.316075]
[1731239964806,0.6608,80118.0,80105.0,0.316075]
[1731239965013,0.13644185,80114.0,80105.0,0.316075]
[1731239965209,0.0569,80117.0,80105.0,0.316075]
[1731239965210,0.1157,80117.0,80105.0,0.316075]
[1731239965707,0.3608,80118.0,80106.0,0.51026622]
[1731239966008,0.3608,80118.0,80106.0,0.81026622]
[1731239966211,0.3608,80118.0,80107.0,0.13388]
[1731239966416,0.3608,80118.0,80106.0,0.18816713]
[1731239966608,0.3608,80118.0,80106.0,0.13404231]
[1731239966915,0.0569,80117.0,80106.0,0.13404231]
[1731239967913,0.10168643,80117.0,80106.0,0.00016231]
[1731239968215,0.0578,80116.0,80106.0,0.00016231]
[1731239968809,0.3608,80111.0,80098.0,0.314162]
[1731239969012,0.09998643,80110.0,80098.0,0.262057]
[1731239969211,0.09998643,80110.0,80089.0,0.38577221]
[1731239969509,0.3608,80102.0,80089.0,0.34184621]
[1731239969715,0.04492652,80101.0,80089.0,0.29013621]
[1731239970012,0.3608,80095.0,80082.0,0.3608]
[1731239970312,0.0548,80094.0,80082.0,0.3608]
[1731239970508,0.15499865,80094.0,80082.0,0.313755]
[1731239970716,0.3608,80087.0,80081.0,0.00013999]
[1731239970909,0.3608,80087.0,80081.0,9.9e-07]
[1731239972912,0.3746,80086.0,80081.0,9.9e-07]
[1731239973109,0.3608,80087.0,80081.0,9.9e-07]
[1731239973416,0.3608,80087.0,80075.0,0.31664599]
[1731239973714,0.6608,80087.0,80075.0,0.22482899]
[1731239973910,0.41944278,80086.0,80075.0,0.12989199]
[1731239974111,0.3608,80079.0,80067.0,0.3608]
[1731239974313,0.49452,80079.0,80067.0,0.3608]
[1731239974513,0.49452,80079.0,80062.0,0.0018738]
[1731239974514,0.3608,80071.0,80062.0,0.0018738]
[1731239974709,0.10310651,80070.0,80062.0,0.0018738]
[1731239974909,0.1141,80070.0,80062.0,8e-07]
[1731239975112,0.15890813,80070.0,80062.0,8e-07]
[1731239975509,0.37468,80069.0,80060.0,0.00011574]
[1731239975716,0.04481106,80068.0,80060.0,0.00011574]
[1731239975911,0.37468,80068.0,80060.0,0.00011574]
[1731239976117,0.37472,80067.0,80060.0,0.00011574]
[1731239976517,0.3608,80062.0,80051.0,2.5e-07]
[1731239976717,0.3608,80052.0,80045.0,9.4e-07]
[1731239977215,0.3608,80052.0,80028.0,0.308767]
[1731239977216,0.3608,80050.0,80028.0,0.308767]
[1731239977421,0.3608,80037.0,80028.0,0.264436]
[1731239977616,0.3608,80029.0,80018.0,0.315702]
[1731239978211,0.3608,80022.0,80014.0,0.3608]
[1731239978615,0.3608,80022.0,80014.0,0.312481]
[1731239978815,0.3608,80015.0,80000.0,0.1]
[1731239979021,0.49456,80015.0,80000.0,0.1]
[1731239979720,0.79456,80015.0,80000.0,0.1]
[1731239980019,0.37496,80014.0,80001.0,0.3608]
[1731239980222,0.3608,80005.0,79985.0,0.3608]
[1731239980418,0.3608,79997.0,79985.0,0.3608]
[1731239980614,0.1338,79996.0,79985.0,0.3608]
[1731239980819,0.50884,79996.0,79985.0,0.33766837]
[1731239981019,0.43124,79995.0,79985.0,0.33766837]
[1731239981428,0.37504,79994.0,79985.0,0.33766837]
[1731239981922,0.37504,79993.0,79985.0,0.33766837]
[1731239982125,0.50884,79993.0,79985.0,0.33766837]
[1731239982321,0.37504,79992.0,79985.0,0.29249837]
[1731239982624,0.37504,79992.0,79983.0,9.653e-05]
[1731239982625,0.3608,79987.0,79983.0,9.653e-05]
[1731239983024,0.37508,79986.0,79983.0,9.653e-05]
[1731239983219,0.6608,79987.0,79983.0,9.653e-05]
[1731239983437,0.02500581,80002.0,79983.0,9.653e-05]
[1731239983628,0.02500581,80002.0,79993.0,0.3608]
[1731239984121,0.3608,80014.0,79993.0,0.3608]
[1731239985031,0.13571652,80013.0,79993.0,0.3608]
[1731239986027,0.00187652,80013.0,79993.0,0.3608]
[1731239986333,0.13384,80011.0,79993.0,0.3608]
[1731239986833,0.02502713,79997.0,79993.0,0.3608]
[1731239987025,0.02502713,79997.0,79986.0,0.3608]
[1731239987026,0.3608,79994.0,79986.0,0.3608]
[1731239987527,0.37504,79993.0,79986.0,0.3608]
[1731239988028,0.02502713,79997.0,79986.0,0.3608]
[1731239988229,0.38582713,79997.0,79986.0,0.3608]
[1731239988828,1.06086713,79997.0,79986.0,0.3608]
[1731239989028,0.38582713,79997.0,79986.0,0.3608]
[1731239989328,1.06086713,79997.0,79986.0,0.3608]
[1731239989530,0.38582713,79997.0,79986.0,0.3608]
[1731239989724,1.06086713,79997.0,79986.0,0.3608]
[1731239990136,0.38582713,79997.0,79986.0,0.3608]
[1731239991230,0.13388,79996.0,79986.0,0.3608]
[1731239991726,0.43388,79996.0,79986.0,0.3608]
[1731239992625,0.13388,79996.0,79986.0,0.3608]
[1731239992824,0.43388,79996.0,79986.0,0.3608]
[1731239993226,0.37504,79995.0,79986.0,0.3608]
[1731239993436,0.3608,79987.0,79983.0,9.653e-05]
[1731239993727,0.3608,79987.0,79971.0,0.3608]
[1731239994327,0.6608,79987.0,79971.0,0.3608]
[1731239994736,0.68582437,79987.0,79971.0,0.3608]
[1731239995638,0.37508,79986.0,79971.0,0.3608]
[1731239996034,0.37512,79985.0,79971.0,0.3608]
[1731239996230,0.3,79985.0,79971.0,0.3608]
[1731239996535,0.3608,79979.0,79971.0,0.3608]
[1731239996734,0.13388,79978.0,79971.0,0.3608]
[1731239997035,0.509,79978.0,79971.0,0.3608]
[1731239997227,0.37512,79977.0,79971.0,0.3608]
[1731239997428,0.37512,79977.0,79962.0,0.3608]
[1731239997628,0.3608,79972.0,79962.0,0.314299]
[1731239997926,0.3608,79963.0,79950.0,0.00014211]
[1731239998328,0.3752,79962.0,79950.0,0.00014211]
[1731239998631,0.3608,79956.0,79950.0,1.1e-07]
[1731239998831,0.3608,79954.0,79950.0,1.1e-07]
[1731239999637,0.50929421,79953.0,79950.0,1.1e-07]
[1731239999936,0.00013421,79953.0,79950.0,1.1e-07]
[1731240000533,0.3608,79963.0,79950.0,1.1e-07]
[1731240001541,0.3608,79963.0,79951.0,0.1864962]
[1731240001735,0.00011295,79962.0,79957.0,0.3608]
[1731240003144,0.3608,79985.0,79961.0,0.3608]
[1731240003340,0.3608,79985.0,79972.0,0.3608]
[1731240004347,0.00010198,79984.0,79972.0,0.3608]
[1731240005050,0.00010198,79984.0,79980.0,0.3608]
[1731240005344,0.02503375,80001.0,79983.0,0.3608]
[1731240005639,0.02503375,80001.0,79992.0,0.3608]
[1731240005845,0.3608,80009.0,79992.0,0.3608]
[1731240006040,0.3608,80009.0,79984.0,0.32118585]
[1731240006041,0.3608,80009.0,79999.0,0.3608]
[1731240006239,0.00014223,80008.0,79999.0,0.3608]
[1731240007150,0.3608,80009.0,79999.0,0.3608]
[1731240007342,0.3608,80028.0,80007.0,0.3608]
[1731240007646,0.3608,80028.0,80014.0,0.3608]
[1731240008351,9.398e-05,80027.0,80014.0,0.3608]
[1731240008547,9.398e-05,80027.0,80014.0,0.53203129]
[1731240008748,9.398e-05,80027.0,80016.0,0.03739129]
[1731240008943,9.398e-05,80027.0,80014.0,0.39819129]
[1731240009143,9.398e-05,80027.0,80014.0,0.3608]
[1731240009853,9.398e-05,80027.0,80023.0,0.3608]
[1731240011157,9.398e-05,80027.0,80024.0,1.05785477]
[1731240011453,0.42036,80077.0,80024.0,1.05785477]
[1731240011454,0.3608,80062.0,80025.0,0.42036]
[1731240011656,0.3608,80069.0,80056.0,0.3608]
[1731240012155,0.02501304,80064.0,80056.0,0.3608]
[1731240012351,9.2e-05,80063.0,80057.0,0.18682108]
[1731240012656,9.2e-05,80063.0,80057.0,0.54762108]
[1731240012958,0.3608,80085.0,80058.0,0.98260269]
[1731240013162,0.3608,80085.0,80079.0,0.3608]
[1731240013354,0.3608,80085.0,80080.0,0.1338]
[1731240013751,0.0001552,80094.0,80084.0,0.3608]
[1731240014051,0.0001552,80094.0,80093.0,0.3608]
[1731240014256,0.0001552,80094.0,80093.0,0.4946]
[1731240014554,0.0001552,80094.0,80093.0,0.3608]
[1731240014755,0.3747152,80094.0,80077.0,0.3608]
[1731240014956,0.0001552,80094.0,80089.0,0.3608]
[1731240015760,0.37456,80093.0,80058.0,0.36093054]
[1731240015961,0.3001552,80094.0,80058.0,0.00013054]
[1731240015962,0.3608,80065.0,80058.0,0.00013054]
[1731240016856,0.374876,80064.0,80058.0,0.00013054]
[1731240017265,0.000156,80064.0,80058.0,0.00013054]
[1731240019865,0.000156,80064.0,80054.0,0.36073054]
[1731240020566,0.000156,80064.0,80048.0,0.0564]
[1731240021672,0.000156,80064.0,80046.0,0.3608]
[1731240021860,0.3608,80057.0,80046.0,0.3608]
[1731240022056,0.057556,80064.0,80046.0,0.3608]
[1731240022261,0.3608,80058.0,80046.0,0.3608]
[1731240022467,0.3608,80058.0,80040.0,0.00014659]
[1731240022768,0.000156,80064.0,80049.0,0.3608]
[1731240023560,0.3608,80056.0,80040.0,0.00014659]
[1731240023959,0.3608,80056.0,80041.0,0.18700218]
[1731240024766,0.3608,80049.0,80040.0,0.00014659]
[1731240024960,0.3608,80042.0,80040.0,0.00014659]
[1731240025155,0.3608,80049.0,80040.0,0.00014659]
[1731240025563,0.3608,80041.0,80040.0,4.659e-05]
[1731240025762,0.49456,80041.0,80040.0,5.9e-07]
[1731240025958,0.86936,80041.0,80040.0,5.9e-07]
[1731240026161,1.16936,80041.0,80040.0,5.9e-07]
[1731240026669,1.1694929,80041.0,80040.0,5.9e-07]
[1731240027065,1.0357329,80041.0,80040.0,5.9e-07]
[1731240027259,0.8694929,80041.0,80040.0,5.9e-07]
[1731240028762,0.02513361,80041.0,80040.0,5.9e-07]
[1731240033575,0.51965361,80041.0,80040.0,5.9e-07]
[1731240034968,0.38593361,80041.0,80040.0,5.9e-07]
[1731240036971,0.51965361,80041.0,80040.0,5.9e-07]
[1731240040076,0.38593361,80041.0,80040.0,5.9e-07]
[1731240040266,0.94369402,80041.0,80040.0,5.9e-07]
[1731240040764,1.24369402,80041.0,80008.0,0.06297503]
[1731240040964,0.3608,80016.0,80007.0,0.00133]
[1731240041370,0.3608,80008.0,80007.0,0.00133]
[1731240041869,0.36093567,80008.0,80007.0,0.00133]
[1731240043465,0.3608,80016.0,80007.0,0.37629]
[1731240043679,0.3608,80027.0,80007.0,0.00133]
[1731240044264,0.3608,80027.0,80008.0,0.18850542]
[1731240044470,0.00012553,80026.0,80008.0,0.18850542]
[1731240044669,0.00012553,80026.0,80022.0,0.3608]
[1731240046173,0.00187588,80043.0,80023.0,0.37488]
[1731240046371,0.00187588,80043.0,80038.0,0.3608]
[1731240047272,0.3608,80060.0,80041.0,0.03724022]
[1731240047471,0.3608,80060.0,80053.0,0.3608]
[1731240048276,0.00015783,80059.0,80053.0,0.3608]
[1731240048975,0.00015783,80059.0,80038.0,0.39804022]
[1731240049178,0.00015783,80059.0,80038.0,0.3608]
[1731240049568,0.00015783,80059.0,80038.0,0.39804022]
[1731240049773,0.00015783,80059.0,80038.0,0.3608]
[1731240050175,0.3608,80051.0,80038.0,0.3608]
[1731240052075,0.05059831,80059.0,80037.0,0.0001377]
[1731240052076,0.3608,80044.0,80037.0,0.0001377]
[1731240053776,0.3608,80055.0,80037.0,0.0001377]
[1731240053976,0.49452,80055.0,80037.0,0.0001377]
[1731240054173,0.02500379,80054.0,80040.0,0.3608]
[1731240054571,0.00015783,80059.0,80049.0,0.3608]
[1731240054772,0.00015783,80059.0,80056.0,0.3608]
[1731240055280,0.00187453,80077.0,80057.0,0.37472]
[1731240055480,0.00187453,80077.0,80064.0,0.3608]
[1731240056279,0.00010072,80076.0,80064.0,0.3608]
[1731240056679,0.02499506,80074.0,80064.0,0.3608]
[1731240057079,0.02499506,80074.0,80072.0,0.3608]
[1731240061488,0.73544,80073.0,80057.0,0.3608]
[1731240061686,0.3608,80073.0,80057.0,0.3608]
[1731240061887,0.1336,80072.0,80057.0,0.3608]
[1731240062095,0.1336,80072.0,80050.0,0.4223]
[1731240064989,0.1336,80071.0,80050.0,0.4223]
[1731240065591,0.3608,80073.0,80058.0,0.3608]
[1731240066195,0.02499506,80074.0,80058.0,0.3608]
[1731240066798,0.02499506,80074.0,80065.0,0.3608]
[1731240067584,0.00010072,80076.0,80065.0,0.3608]
[1731240068397,0.00010072,80076.0,80072.0,0.3608]
[1731240070591,0.00010072,80076.0,80075.0,0.3608]
[1731240072099,0.00010072,80076.0,80075.0,0.73544]
[1731240076203,0.09799412,80105.0,80075.0,1.169]
[1731240076399,0.02499412,80105.0,80099.0,0.3608]
[1731240077102,0.49623372,80114.0,80099.0,0.3608]
[1731240077103,0.04880378,80102.0,80099.0,0.3608]
[1731240077297,0.13637375,80108.0,80099.0,0.3608]
[1731240077498,0.00187372,80114.0,80099.0,0.73532]
[1731240077698,0.00187372,80114.0,80113.0,0.3608]
[1731240079600,0.00187372,80114.0,80113.0,0.49432]
[1731240080498,0.0707,80134.0,80113.0,0.8688]
[1731240080699,0.0707,80134.0,80127.0,0.3608]
[1731240081794,0.11952377,80134.0,80127.0,0.3608]
[1731240085602,0.3608,80153.0,80127.0,0.3608]
[1731240085901,0.05107279,80145.0,80135.0,0.3608]
[1731240086101,0.3608,80153.0,80135.0,0.3608]
[1731240087800,0.41084864,80153.0,80142.0,0.3608]
[1731240088304,0.05004864,80153.0,80142.0,0.3608]
[1731240088507,0.0821,80168.0,80142.0,0.6608]
[1731240089011,0.3608,80169.0,80153.0,0.3608]
[1731240089305,0.41199624,80169.0,80154.0,0.0806]
[1731240089610,0.3608,80184.0,80163.0,0.3608]
[1731240090412,0.41972,80231.0,80172.0,0.3608]
[1731240090605,0.41972,80231.0,80170.0,0.3608]
[1731240090606,0.3608,80213.0,80201.0,0.3608]
[1731240090801,0.3608,80223.0,80212.0,0.3608]
[1731240091099,0.02497378,80218.0,80201.0,0.3608]
[1731240091299,0.02497378,80218.0,80194.0,0.3608]
[1731240091300,0.3608,80215.0,80194.0,0.3608]
[1731240091504,0.3608,80217.0,80194.0,0.3608]
[1731240091703,0.13332,80216.0,80194.0,0.3608]
[1731240092016,0.03054054,80215.0,80194.0,0.3608]
[1731240092223,0.03054054,80214.0,80194.0,0.3608]
[1731240092411,0.0013251,80205.0,80194.0,0.3608]
[1731240092914,0.3608,80200.0,80194.0,0.2322]
[1731240093107,0.3608,80200.0,80194.0,0.02493952]
[1731240093303,0.3608,80200.0,80178.0,0.3608]
[1731240093304,0.0013251,80197.0,80178.0,0.3608]
[1731240093608,0.0013251,80197.0,80168.0,0.3608]
[1731240093609,0.3608,80184.0,80168.0,0.3608]
[1731240093806,0.3608,80175.0,80168.0,0.3608]
[1731240094006,0.13328,80174.0,80168.0,0.3608]
[1731240094200,0.3742,80173.0,80154.0,0.3608]
[1731240094407,0.0013251,80164.0,80154.0,0.3608]
[1731240094706,0.00171289,80159.0,80139.0,0.3608]
[1731240094909,0.13328,80158.0,80139.0,0.3608]
[1731240095214,0.50756,80158.0,80139.0,0.3608]
[1731240095411,0.3608,80154.0,80139.0,0.3608]
[1731240095613,0.00171289,80152.0,80139.0,0.3608]
[1731240096111,0.3608,80151.0,80139.0,0.3608]
[1731240096412,0.37428,80151.0,80139.0,0.3608]
[1731240096615,0.00171289,80151.0,80139.0,0.3608]
[1731240096810,0.37599289,80151.0,80139.0,0.3608]
[1731240097114,0.00171289,80151.0,80139.0,0.3608]
[1731240097300,0.37599289,80151.0,80148.0,0.3608]
[1731240097507,0.73689583,80151.0,80150.0,1.8e-07]
[1731240097803,0.00181583,80151.0,80139.0,0.36020018]
[1731240098604,0.00010294,80151.0,80139.0,0.36020018]
[1731240098808,0.00171289,80145.0,80139.0,0.36020018]
[1731240099011,0.13328,80153.0,80139.0,0.36020018]
[1731240099012,0.12943583,80153.0,80139.0,0.36020018]